bitfinex-derivatives/quotes_SOLF0:USTF0_20260220
["timestamp","ask_amount","ask_price","bid_price","bid_amount"]
[1771576940728,10.82759723,83.379,83.346,3.94665825]
[1771576943032,10.82759723,83.379,83.347,10.803]
[1771576944327,10.82759723,83.389,83.355,10.802]
[1771576944534,10.82759723,83.389,83.356,3.39356556]
[1771576948037,10.82759723,83.389,83.357,10.8017]
[1771576952238,10.82759723,83.389,83.35,3.1067875]
[1771576953541,10.82759723,83.389,83.344,10.8034]
[1771576954445,10.82759723,83.379,83.344,10.8034]
[1771576963350,10.82759723,83.379,83.335,2.79238883]
[1771576975361,22.22360926,83.404,83.324,2.64300758]
[1771576975362,10.01187136,83.369,83.324,2.64300758]
[1771576980672,10.01187136,83.363,83.315,2.49744806]
[1771576980860,10.01187136,83.359,83.315,2.49744806]
[1771576981669,10.01187136,83.353,83.315,2.49744806]
[1771576983774,9.74318858,83.349,83.31,255.56544411]
[1771576984672,10.8034,83.345,83.31,255.56544411]
[1771576984977,9.74318858,83.344,83.31,255.56544411]
[1771576988268,10.09861645,83.34,83.31,255.56544411]
[1771576990670,10.09861645,83.338,83.31,255.56544411]
[1771576991672,10.8044,83.337,83.31,255.56544411]
[1771576992073,20.90301645,83.337,83.31,255.56544411]
[1771576995880,10.09861645,83.336,83.31,255.56544411]
[1771576996278,20.90381645,83.331,83.31,229.14534411]
[1771576997180,20.90381645,83.331,83.304,2.42702484]
[1771577003381,10.09861645,83.331,83.304,2.42702484]
[1771577006883,10.09861645,83.331,83.291,1.47939845]
[1771577009288,10.09861645,83.331,83.3,3.1067875]
[1771577009888,10.09861645,83.331,83.3,3.11080106]
[1771577019593,10.09861645,83.331,83.291,1.47939845]
[1771577020092,10.09861645,83.331,83.293,1.21091659]
[1771577020988,10.09861645,83.331,83.3,3.11080106]
[1771577022090,10.09861645,83.331,83.294,1.19801006]
[1771577023196,10.09861645,83.331,83.296,1.16772327]
[1771577024096,10.09861645,83.331,83.297,1.15604135]
[1771577027192,10.09861645,83.331,83.298,1.13741314]
[1771577027400,10.09861645,83.331,83.301,1.13740007]
[1771577032400,10.09861645,83.331,83.302,10.8089]
[1771577035296,10.09861645,83.331,83.302,33.17639381]
[1771577037892,10.09861645,83.331,83.302,10.8089]
[1771577040203,10.09861645,83.331,83.297,22.36749381]
[1771577041605,10.09861645,83.331,83.292,10.8101]
[1771577042304,10.09861645,83.331,83.298,10.8093]
[1771577044903,10.09861645,83.331,83.297,22.36749381]
[1771577045304,10.09861645,83.331,83.296,22.36749381]
[1771577046510,10.09861645,83.331,83.297,0.68920067]
[1771577047705,10.09861645,83.331,83.298,22.36749381]
[1771577048307,10.09861645,83.331,83.297,23.05669448]
[1771577049514,10.09861645,83.331,83.298,0.67882898]
[1771577051009,9.42704503,83.329,83.296,22.36749381]
[1771577052309,167.9502,83.396,83.287,22.46822848]
[1771577052310,9.22208857,83.319,83.287,22.46822848]
[1771577052509,9.22208857,83.319,83.277,10.812]
[1771577052710,9.22208857,83.319,83.28,10.8117]
[1771577054214,9.22208857,83.319,83.278,9.75731634]
[1771577055110,9.22208857,83.319,83.278,20.56921634]
[1771577056515,9.22208857,83.319,83.279,9.75731634]
[1771577059417,9.22208857,83.319,83.281,9.75731634]
[1771577059616,9.22208857,83.319,83.27,12.8681174]
[1771577060012,9.22208857,83.319,83.271,9.75731634]
[1771577061317,9.22208857,83.319,83.277,10.812]
[1771577061915,3.11080106,83.31,83.277,10.812]
[1771577062218,9.22208857,83.309,83.278,9.75731634]
[1771577062420,9.22208857,83.309,83.277,10.812]
[1771577063314,3.11080106,83.3,83.266,10.8135]
[1771577063520,9.22208857,83.299,83.266,10.8135]
[1771577065218,9.22208857,83.299,83.254,9.75731634]
[1771577065415,9.22208857,83.299,83.257,10.8146]
[1771577067130,9.22208857,83.299,83.26,9.75731634]
[1771577070328,9.22208857,83.299,83.259,10.8144]
[1771577070528,9.22208857,83.289,83.259,10.8144]
[1771577071332,9.22208857,83.289,83.25,9.75731634]
[1771577072034,9.22208857,83.289,83.251,9.75731634]
[1771577072822,9.22208857,83.289,83.252,9.75731634]
[1771577076432,9.22208857,83.289,83.254,9.75731634]
[1771577077331,3.11446218,83.3,83.254,9.75731634]
[1771577077536,8.99278061,83.299,83.261,9.75780565]
[1771577078431,8.99278061,83.299,83.262,10.814]
[1771577078635,8.99278061,83.299,83.263,9.75780565]
[1771577081639,8.99278061,83.309,83.271,9.75780565]
[1771577082736,8.99278061,83.309,83.279,10.8118]
[1771577084836,8.99278061,83.309,83.271,10.8128]
[1771577085531,8.99278061,83.309,83.278,10.8119]
[1771577088336,8.99278061,83.309,83.269,10.813]
[1771577098247,8.99278061,83.309,83.27,9.75780565]
[1771577100249,8.99278061,83.299,83.259,9.75780565]
[1771577101754,8.99278061,83.297,83.259,9.75780565]
[1771577101949,8.99278061,83.289,83.25,9.75780565]
[1771577103551,8.99278061,83.289,83.251,9.56112162]
[1771577104859,9.12157497,83.301,83.253,9.56112162]
[1771577105060,9.12157497,83.299,83.253,9.56112162]
[1771577105757,9.12157497,83.299,83.255,9.56112162]
[1771577106254,9.12157497,83.299,83.261,9.56112162]
[1771577106657,9.12157497,83.297,83.261,9.56112162]
[1771577107758,9.94191312,83.295,83.261,9.56112162]
[1771577113564,3.11446218,83.28,83.228,9.85623843]
[1771577113761,9.94191312,83.279,83.228,9.85623843]
[1771577113958,11.1795762,83.343,83.27,3.11446218]
[1771577114165,11.1795762,83.381,83.301,9.85623843]
[1771577114370,3.11446218,83.35,83.301,9.85623843]
[1771577114867,3.11446218,83.35,83.302,10.8089]
[1771577115167,10.8019,83.357,83.31,3.11446218]
[1771577116068,7.38020135,83.354,83.31,3.11446218]
[1771577116770,7.38020135,83.354,83.303,9.85623843]
[1771577117363,10.8008,83.364,83.311,9.85623843]
[1771577117671,18.1037746,83.364,83.311,9.85623843]
[1771577117870,3.11446218,83.36,83.311,9.85623843]
[1771577118674,3.11446218,83.36,83.314,9.85623843]
[1771577118969,10.7996,83.374,83.321,9.85623843]
[1771577119167,3.11446218,83.37,83.321,9.85623843]
[1771577119361,10.43463346,83.37,83.321,9.85623843]
[1771577119761,7.32070967,83.369,83.321,9.85623843]
[1771577120872,7.32070967,83.369,83.324,9.85623843]
[1771577121070,3.11446218,83.37,83.324,9.85623843]
[1771577121270,18.06091218,83.374,83.324,9.85623843]
[1771577121474,3.11446218,83.37,83.324,9.85623843]
[1771577122470,10.38722711,83.37,83.324,9.85623843]
[1771577125072,3.11446218,83.37,83.324,9.85623843]
[1771577125270,3.11446218,83.37,83.264,168.2143]
[1771577125271,7.30770562,83.389,83.346,9.85623843]
[1771577131680,3.11446218,83.39,83.346,9.85623843]
[1771577132879,10.82245503,83.39,83.346,9.85623843]
[1771577133480,7.71787821,83.389,83.346,9.85623843]
[1771577134172,7.71787821,83.389,83.348,9.85623843]
[1771577138772,10.7969,83.395,83.349,9.1420449]
[1771577138977,10.80335064,83.4,83.351,9.1420449]
[1771577139587,10.80335064,83.4,83.357,9.1420449]
[1771577139983,7.71454704,83.397,83.357,9.1420449]
[1771577140587,10.7969,83.395,83.357,9.1420449]
[1771577140978,7.71454704,83.397,83.357,9.1420449]
[1771577146389,7.71454704,83.397,83.361,9.1420449]
[1771577151892,3.10719174,83.4,83.361,9.1420449]
[1771577151893,7.72131144,83.396,83.361,9.1420449]
[1771577153697,10.797,83.394,83.361,9.1420449]
[1771577160595,3.10719174,83.4,83.361,9.1420449]
[1771577160799,7.99878674,83.406,83.361,9.1420449]
[1771577161399,10.7943,83.415,83.371,9.1420449]
[1771577161705,3.10719174,83.43,83.381,9.1420449]
[1771577161891,3.10719174,83.43,83.38,3.10719174]
[1771577161892,3.10719174,83.43,83.385,9.1420449]
[1771577162096,8.00605149,83.438,83.391,9.1420449]
[1771577162595,8.81746402,83.46,83.366,22.36870487]
[1771577162799,3.10719174,83.45,83.401,9.1420449]
[1771577163008,3.10719174,83.45,83.411,9.1420449]
[1771577163800,3.10719174,83.46,83.411,9.1420449]
[1771577164705,3.10719174,83.46,83.413,9.69611018]
[1771577165302,3.10719174,83.45,83.413,9.69611018]
[1771577166410,13.25236244,83.46,83.415,9.69611018]
[1771577167708,13.25236244,83.46,83.417,9.28810876]
[1771577171612,13.25236244,83.46,83.419,9.28810876]
[1771577177210,10.15870947,83.469,83.426,9.28810876]
[1771577177515,3.10719174,83.46,83.426,9.28810876]
[1771577178310,10.15870947,83.469,83.426,9.28810876]
[1771577179720,10.15870947,83.469,83.429,9.28810876]
[1771577181510,3.10719174,83.46,83.4,3.10719174]
[1771577181709,22.58085888,83.496,83.391,9.28810876]
[1771577181710,10.15870947,83.439,83.391,9.28810876]
[1771577181918,3.10719174,83.43,83.391,9.28810876]
[1771577182416,13.26590121,83.43,83.391,9.28810876]
[1771577182612,10.15870947,83.429,83.391,9.28810876]
[1771577182817,3.10719174,83.42,83.391,9.28810876]
[1771577183017,3.10719174,83.41,83.38,9.28810876]
[1771577183324,13.26590121,83.41,83.371,31.68306947]
[1771577183622,3.10719174,83.4,83.371,31.68306947]
[1771577184522,10.15870947,83.409,83.371,31.68306947]
[1771577186917,10.15870947,83.409,83.371,40.97117823]
[1771577187114,10.15870947,83.409,83.372,9.28810876]
[1771577194428,10.15870947,83.419,83.372,9.28810876]
[1771577195221,3.10719174,83.41,83.372,9.28810876]
[1771577195427,10.15870947,83.409,83.372,9.28810876]
[1771577202434,10.16217254,83.399,83.352,9.48122704]
[1771577203030,10.16217254,83.399,83.355,9.48122704]
[1771577204439,10.16217254,83.409,83.361,9.48122704]
[1771577205038,10.16217254,83.409,83.367,9.48122704]
[1771577208640,10.16217254,83.409,83.36,3.1058674]
[1771577208641,10.16217254,83.419,83.371,9.48122704]
[1771577209744,10.16217254,83.419,83.374,9.48122704]
[1771577210344,10.16217254,83.419,83.381,9.48122704]
[1771577214950,10.16217254,83.419,83.383,9.48122704]
[1771577216245,10.16217254,83.419,83.383,20.28052704]
[1771577216441,10.16217254,83.429,83.384,9.48122704]
[1771577217748,10.16217254,83.429,83.386,9.48122704]
[1771577218544,3.1058674,83.42,83.386,9.48122704]
[1771577218748,10.16217254,83.419,83.386,9.48122704]
[1771577221547,10.16217254,83.409,83.367,9.48122704]
[1771577222656,10.16217254,83.408,83.367,9.48122704]
[1771577226255,10.16217254,83.408,83.364,10.8019]
[1771577227762,10.16217254,83.408,83.364,20.30451789]
[1771577229262,10.16217254,83.408,83.364,9.50261789]
[1771577234264,10.7964,83.407,83.364,9.50261789]
[1771577234570,10.23590304,83.406,83.364,9.50261789]
[1771577236970,10.22405294,83.404,83.364,9.50261789]
[1771577237568,10.22404127,83.414,83.371,9.50261789]
[1771577238266,21.02346221,83.413,83.371,9.50261789]
[1771577238571,10.29851867,83.429,83.371,9.50261789]
[1771577239572,10.29851867,83.429,83.38,3.1058674]
[1771577239773,10.29851867,83.424,83.381,9.50261789]
[1771577240171,3.1058674,83.41,83.361,9.50261789]
[1771577240473,10.29851867,83.409,83.361,9.50261789]
[1771577241665,10.7966,83.406,83.361,9.50261789]
[1771577241873,10.29851867,83.405,83.361,9.50261789]
[1771577246173,3.1058674,83.42,83.381,9.50261789]
[1771577246373,10.29851867,83.419,83.381,9.50261789]
[1771577246881,10.795,83.418,83.381,9.50261789]
[1771577247177,3.1058674,83.39,83.353,9.50261789]
[1771577247382,10.7978,83.396,83.353,9.50261789]
[1771577247570,10.29851867,83.395,83.353,9.50261789]
[1771577249681,10.29851867,83.395,83.355,9.50261789]
[1771577256392,10.29851867,83.388,83.341,9.50261789]
[1771577257597,10.29851867,83.388,83.34,3.1058674]
[1771577257598,10.29851867,83.388,83.343,9.56126228]
[1771577263294,10.7992,83.386,83.343,9.56126228]
[1771577265397,10.21886961,83.385,83.343,9.56126228]
[1771577265608,10.21886961,83.383,83.343,9.56126228]
[1771577268598,10.21886961,83.378,83.327,9.56126228]
[1771577268904,10.21886961,83.369,83.327,9.56126228]
[1771577269905,10.21886961,83.369,83.331,9.56126228]
[1771577270804,11.19297165,83.411,83.322,31.01749075]
[1771577270805,10.21886961,83.393,83.341,9.56126228]
[1771577271004,10.21886961,83.393,83.351,9.56126228]
[1771577273005,10.21886961,83.409,83.361,9.56126228]
[1771577274109,10.21886961,83.409,83.342,22.36870487]
[1771577274110,10.7966,83.406,83.371,9.56126228]
[1771577275207,10.21886961,83.406,83.371,9.56126228]
[1771577277113,10.21886961,83.406,83.322,31.01749075]
[1771577277114,10.21886961,83.399,83.359,9.56126228]
[1771577281110,10.21886961,83.399,83.359,20.36376228]
[1771577281315,10.21886961,83.399,83.361,9.56126228]
[1771577281813,10.21886961,83.419,83.371,9.56126228]
[1771577282009,10.21886961,83.419,83.381,9.56126228]
[1771577282817,10.21886961,83.429,83.381,9.56126228]
[1771577283316,10.7938,83.428,83.381,9.56126228]
[1771577283515,10.21886961,83.427,83.381,9.56126228]
[1771577284511,13.23911982,83.42,83.381,9.56126228]
[1771577286506,10.13176934,83.419,83.381,9.56126228]
[1771577288317,10.13176934,83.419,83.37,10.47036451]
[1771577288618,10.06906483,83.409,83.37,13.57771499]
[1771577288814,10.06906483,83.409,83.37,10.47036451]
[1771577302424,10.06906483,83.409,83.371,10.47036451]
[1771577305130,3.10735048,83.39,83.343,10.47036451]
[1771577305329,10.06906483,83.379,83.343,10.47036451]
[1771577305526,3.10735048,83.37,83.331,10.47036451]
[1771577305730,10.06906483,83.369,83.321,10.47036451]
[1771577305930,10.06906483,83.368,83.321,10.47036451]
[1771577306424,10.06906483,83.368,83.324,10.47036451]
[1771577306624,10.06906483,83.38,83.331,10.47036451]
[1771577306827,13.17641531,83.38,83.331,10.47036451]
[1771577307327,10.06906483,83.38,83.341,10.47036451]
[1771577308420,10.06906483,83.38,83.344,10.47036451]
[1771577308626,13.17641531,83.39,83.344,10.47036451]
[1771577308929,10.06906483,83.389,83.344,10.47036451]
[1771577314338,10.06906483,83.41,83.371,10.47036451]
[1771577321334,9.82307773,83.409,83.371,10.47036451]
[1771577321536,9.82307773,83.409,83.364,10.8019]
[1771577322444,9.82307773,83.409,83.364,21.06721461]
[1771577322643,9.82307773,83.409,83.367,10.8015]
[1771577324442,9.82307773,83.409,83.362,10.26531461]
[1771577324644,9.82307773,83.408,83.362,10.26531461]
[1771577331050,9.82307773,83.449,83.374,10.26531461]
[1771577331252,9.82307773,83.439,83.391,10.26531461]
[1771577331455,3.10529897,83.43,83.391,10.26531461]
[1771577331754,9.82307773,83.429,83.391,10.26531461]
[1771577334257,22.06056456,83.469,83.401,10.26531461]
[1771577334258,9.82307773,83.449,83.401,10.26531461]
[1771577335758,10.7911,83.448,83.401,10.26531461]
[1771577337357,20.61417773,83.448,83.401,10.26531461]
[1771577338253,9.82307773,83.447,83.401,10.26531461]
[1771577338459,3.10529897,83.44,83.401,10.26531461]
[1771577340450,3.10529897,83.43,83.389,10.26531461]
[1771577340662,9.82307773,83.419,83.375,10.26531461]
[1771577341258,9.82307773,83.419,83.376,10.8003]
[1771577341561,9.82307773,83.419,83.377,10.26531461]
[1771577341862,9.82307773,83.419,83.381,10.26531461]
[1771577342162,10.7936,83.429,83.381,10.26531461]
[1771577342557,10.7939,83.426,83.381,10.26531461]
[1771577342760,20.61697773,83.426,83.381,10.26531461]
[1771577347157,10.10260105,83.419,83.381,10.26531461]
[1771577347662,10.10260105,83.419,83.36,3.10529897]
[1771577347663,10.10260105,83.409,83.369,9.70194043]
[1771577350765,10.10260105,83.399,83.358,9.70194043]
[1771577351173,11.15269263,83.443,83.341,9.70194043]
[1771577351174,10.10260105,83.389,83.341,9.70194043]
[1771577352956,10.10260105,83.389,83.342,10.8047]
[1771577353158,10.10260105,83.389,83.343,9.70194043]
[1771577354364,10.10260105,83.389,83.347,9.70194043]
[1771577354571,10.10260105,83.389,83.351,9.70194043]
[1771577372487,10.10260105,83.389,83.354,9.70194043]
[1771577381797,10.10260105,83.389,83.355,20.46691514]
[1771577382000,10.10260105,83.389,83.356,9.66391514]
[1771577384097,9.54400786,83.409,83.361,9.66391514]
[1771577385899,9.54400786,83.409,83.366,9.66391514]
[1771577387395,9.54400786,83.409,83.374,10.8006]
[1771577388002,9.54400786,83.409,83.366,9.66391514]
[1771577388705,9.54400786,83.409,83.368,9.66391514]
[1771577403114,12.65094026,83.46,83.401,9.66391514]
[1771577403310,9.54400786,83.46,83.421,9.66391514]
[1771577404111,9.54400786,83.46,83.424,10.7941]
[1771577404308,9.54400786,83.46,83.425,9.53638257]
[1771577405313,10.20131707,83.482,83.441,9.53638257]
[1771577405508,3.1069324,83.5,83.45,3.1069324]
[1771577405712,10.20131707,83.493,83.451,9.53638257]
[1771577406204,10.20131707,83.489,83.44,3.1069324]
[1771577406407,10.20131707,83.489,83.437,9.53638257]
[1771577407714,10.20131707,83.489,83.441,10.05423502]
[1771577408416,9.74174676,83.519,83.48,3.1069324]
[1771577408615,9.74174676,83.519,83.481,10.05423502]
[1771577409619,9.74174676,83.519,83.461,10.05423502]
[1771577410314,3.1069324,83.51,83.461,10.05423502]
[1771577410513,9.74174676,83.509,83.461,10.05423502]
[1771577413022,9.74174676,83.509,83.465,10.05423502]
[1771577413224,12.84867916,83.52,83.471,10.05423502]
[1771577414722,3.1069324,83.51,83.471,10.05423502]
[1771577417630,3.1069324,83.5,83.471,10.05423502]
[1771577419426,3.1069324,83.51,83.471,10.05423502]
[1771577420637,3.1069324,83.51,83.473,10.05423502]
[1771577424735,3.1069324,83.51,83.475,10.05423502]
[1771577427134,12.84867916,83.51,83.475,10.05423502]
[1771577428638,9.74174676,83.509,83.46,10.05423502]
[1771577428841,3.1069324,83.49,83.46,10.05423502]
[1771577436035,9.74174676,83.494,83.46,10.05423502]
[1771577436243,3.1069324,83.49,83.46,10.05423502]
[1771577439942,3.09939696,83.49,83.46,10.05423502]
[1771577440739,3.09939696,83.48,83.449,10.37763837]
[1771577444446,9.56699695,83.489,83.449,10.37763837]
[1771577445347,3.09939696,83.48,83.449,10.37763837]
[1771577453847,9.56699695,83.489,83.449,10.37763837]
[1771577455153,3.09939696,83.48,83.449,10.37763837]
[1771577455357,9.56699695,83.479,83.438,10.37763837]
[1771577457063,9.56699695,83.479,83.44,10.37763837]
[1771577457261,9.56699695,83.479,83.441,10.37763837]
[1771577457460,9.56699695,83.489,83.441,10.37763837]
[1771577457657,9.56699695,83.489,83.411,29.59084001]
[1771577457658,9.56699695,83.499,83.451,10.37763837]
[1771577457863,3.09939696,83.49,83.451,10.37763837]
[1771577458058,9.56699695,83.489,83.443,10.37763837]
[1771577458561,20.35279695,83.489,83.443,10.37763837]
[1771577458758,3.09939696,83.47,83.433,10.37763837]
[1771577458957,9.56699695,83.469,83.433,10.37763837]
[1771577460262,3.09939696,83.49,83.436,10.37763837]
[1771577460469,3.09939696,83.49,83.441,10.37763837]
[1771577461065,12.66639391,83.49,83.441,10.37763837]
[1771577461367,9.56699695,83.49,83.441,10.37763837]
[1771577461562,9.56699695,83.49,83.444,32.74634324]
[1771577461866,9.56699695,83.49,83.447,10.37763837]
[1771577462566,9.56699695,83.49,83.449,10.37763837]
[1771577463471,9.56699695,83.49,83.451,10.37763837]
[1771577473770,10.18900952,83.499,83.461,10.08568549]
[1771577474069,10.18900952,83.518,83.481,10.08568549]
[1771577480970,10.18900952,83.518,83.482,10.08568549]
[1771577482276,10.18900952,83.528,83.491,10.08568549]
[1771577484575,13.28840648,83.55,83.501,10.08568549]
[1771577484775,3.09939696,83.55,83.501,10.08568549]
[1771577485479,13.28840648,83.56,83.51,3.09939696]
[1771577485673,10.18900952,83.558,83.511,10.08568549]
[1771577486670,3.09939696,83.54,83.511,10.08568549]
[1771577486883,10.18900952,83.539,83.498,10.08568549]
[1771577487677,10.18900952,83.539,83.5,10.08568549]
[1771577488384,10.18900952,83.539,83.503,20.86958549]
[1771577491082,10.18900952,83.539,83.495,10.7849]
[1771577491289,10.18900952,83.529,83.495,10.7849]
[1771577491488,10.18900952,83.529,83.495,20.87058549]
[1771577491690,10.18900952,83.529,83.496,10.08568549]
[1771577497494,10.18900952,83.529,83.483,10.31936072]
[1771577499590,10.18900952,83.529,83.486,10.31936072]
[1771577499785,10.18900952,83.529,83.491,10.31936072]
[1771577506101,10.18900952,83.529,83.497,10.31936072]
[1771577508401,10.18900952,83.529,83.499,10.7844]
[1771577517703,10.18900952,83.529,83.49,10.7855]
[1771577517908,10.02782178,83.519,83.49,10.7855]
[1771577520401,10.02782178,83.519,83.482,10.7866]
[1771577520606,10.02782178,83.519,83.471,10.31936072]
[1771577521904,10.02782178,83.519,83.474,10.31936072]
[1771577523508,10.02782178,83.519,83.476,10.7874]
[1771577523705,10.02782178,83.519,83.477,10.31936072]
[1771577524811,10.02782178,83.519,83.47,3.0968013]
[1771577524812,10.02782178,83.519,83.48,10.12701749]
[1771577528313,3.0968013,83.5,83.458,9.618504]
[1771577528514,9.83262233,83.509,83.461,9.618504]
[1771577529015,9.83262233,83.509,83.467,9.618504]
[1771577533916,9.83262233,83.509,83.472,10.7879]
[1771577534118,3.0968013,83.52,83.473,10.30568143]
[1771577534421,9.60900507,83.529,83.481,10.30568143]
[1771577535722,9.60900507,83.529,83.493,10.27557707]
[1771577537115,9.95502027,83.537,83.493,10.27557707]
[1771577540922,9.95502027,83.537,83.501,10.27557707]
[1771577541320,196.95232909,83.55,83.504,10.27557707]
[1771577541517,193.85552779,83.55,83.51,3.0968013]
[1771577541718,3.0968013,83.56,83.511,10.27557707]
[1771577542021,13.05182157,83.56,83.511,10.27557707]
[1771577542222,9.95502027,83.56,83.521,10.27557707]
[1771577542620,9.95502027,83.56,83.522,10.27557707]
[1771577543728,9.95502027,83.56,83.523,10.7814]
[1771577544024,9.95502027,83.56,83.52,3.0968013]
[1771577544025,9.95502027,83.571,83.524,10.27557707]
[1771577544516,9.95502027,83.569,83.524,10.27557707]
[1771577545720,9.95502027,83.569,83.526,10.27557707]
[1771577546734,9.95502027,83.569,83.532,10.7801]
[1771577551736,3.0968013,83.56,83.526,10.27557707]
[1771577551936,9.95502027,83.559,83.526,10.27557707]
[1771577552538,3.0968013,83.55,83.521,10.7815]
[1771577552734,9.95502027,83.549,83.516,10.27557707]
[1771577554238,3.0968013,83.54,83.502,10.27557707]
[1771577554438,9.95502027,83.549,83.502,10.27557707]
[1771577554929,9.95502027,83.547,83.502,10.27557707]
[1771577555127,3.0968013,83.53,83.502,10.27557707]
[1771577555434,9.95502027,83.529,83.481,10.27557707]
[1771577556836,9.95502027,83.529,83.488,10.27557707]
[1771577560543,9.95502027,83.529,83.491,9.92571344]
[1771577561246,10.09912676,83.539,83.497,20.71041344]
[1771577561543,10.09912676,83.539,83.498,9.92571344]
[1771577562634,10.09912676,83.539,83.499,10.7844]
[1771577562839,10.09912676,83.539,83.5,9.92571344]
[1771577563743,10.09912676,83.539,83.505,10.7836]
[1771577564340,10.09912676,83.539,83.505,20.70931344]
[1771577564540,10.09912676,83.539,83.507,10.7834]
[1771577565840,10.09912676,83.539,83.495,10.7849]
[1771577566043,10.09912676,83.529,83.495,10.7849]
[1771577566242,10.09912676,83.529,83.491,9.92571344]
[1771577566644,10.09912676,83.529,83.504,10.7838]
[1771577567543,3.09590228,83.54,83.511,10.7828]
[1771577567941,13.19502904,83.54,83.511,10.7828]
[1771577568144,10.09912676,83.539,83.511,10.7828]
[1771577570058,10.09912676,83.539,83.503,10.7839]
[1771577574255,3.09590228,83.54,83.509,10.7831]
[1771577574454,179.48394322,83.613,83.511,9.92571344]
[1771577574455,3.09590228,83.56,83.511,9.92571344]
[1771577575857,10.09912676,83.563,83.524,10.7812]
[1771577577054,10.09912676,83.559,83.524,10.7812]
[1771577581663,10.09912676,83.559,83.522,9.92571344]
[1771577581863,10.09912676,83.549,83.514,10.7824]
[1771577583958,10.09912676,83.549,83.517,10.7821]
[1771577585269,9.67452133,83.559,83.52,9.75415682]
[1771577585568,3.09590228,83.56,83.52,9.75415682]
[1771577586460,10.7763,83.563,83.522,9.75415682]
[1771577586660,3.09590228,83.56,83.522,9.75415682]
[1771577587861,3.09590228,83.57,83.522,9.75415682]
[1771577588065,9.8914227,83.568,83.522,9.75415682]
[1771577588265,8.82766329,83.567,83.522,9.75415682]
[1771577588456,8.82766329,83.566,83.522,9.75415682]
[1771577588668,9.8914227,83.568,83.534,10.0314575]
[1771577596972,9.8914227,83.568,83.535,10.7798]
[1771577600267,9.8914227,83.568,83.534,10.0314575]
[1771577612288,9.8914227,83.564,83.521,10.0314575]
[1771577613089,9.8914227,83.564,83.524,10.0314575]
[1771577614389,20.6663227,83.573,83.527,10.0314575]
[1771577614591,9.8914227,83.572,83.527,10.0314575]
[1771577614886,9.8914227,83.569,83.527,10.0314575]
[1771577615689,10.7758,83.567,83.527,10.0314575]
[1771577617486,20.43879022,83.567,83.527,10.0314575]
[1771577621692,9.66299022,83.567,83.534,9.78454598]
[1771577627886,9.66299022,83.567,83.536,10.7796]
[1771577630293,8.86170328,83.566,83.536,10.7796]
[1771577630496,9.66299022,83.566,83.536,10.7796]
[1771577630696,8.86178728,83.565,83.536,10.7796]
[1771577630897,9.66299022,83.566,83.536,10.7796]
[1771577631294,8.86302422,83.565,83.536,10.7796]
[1771577631499,9.66299022,83.566,83.536,10.7796]
[1771577631797,8.86302422,83.565,83.536,10.7796]
[1771577631998,9.66299022,83.566,83.536,10.7796]
[1771577632194,8.86302422,83.565,83.536,10.7796]
[1771577632401,9.66299022,83.566,83.536,10.7796]
[1771577640408,9.66299022,83.566,83.534,9.78454598]
[1771577640801,9.66299022,83.566,83.534,5.00454598]
[1771577642708,31.61345889,83.591,83.546,9.78454598]
[1771577642908,9.66299022,83.59,83.546,9.78454598]
[1771577643805,10.772,83.596,83.551,9.54277536]
[1771577644010,13.2148797,83.61,83.561,9.54277536]
[1771577644605,10.12063234,83.609,83.561,9.54277536]
[1771577644909,10.7709,83.605,83.563,9.54277536]
[1771577645103,10.12063234,83.609,83.563,9.54277536]
[1771577645304,10.12063234,83.619,83.577,9.54277536]
[1771577645503,11.17776867,83.638,83.591,9.54277536]
[1771577645707,10.7661,83.642,83.601,9.54277536]
[1771577646005,10.12063234,83.639,83.601,9.54277536]
[1771577646402,3.09424736,83.63,83.601,9.54277536]
[1771577647816,3.09424736,83.62,83.584,9.88520366]
[1771577648808,10.03510845,83.629,83.584,9.88520366]
[1771577649607,3.09424736,83.63,83.584,9.88520366]
[1771577649807,20.80160845,83.639,83.587,9.88520366]
[1771577650012,10.03510845,83.639,83.591,9.88520366]
[1771577650912,3.09424736,83.63,83.595,9.88520366]
[1771577652413,3.09424736,83.62,83.595,9.88520366]
[1771577653202,3.09424736,83.63,83.595,9.88520366]
[1771577654117,10.03510845,83.629,83.595,9.88520366]
[1771577654310,3.09424736,83.62,83.595,9.88520366]
[1771577658412,10.03510845,83.629,83.595,9.88520366]
[1771577669624,10.03510845,83.658,83.61,3.09424736]
[1771577669820,10.03510845,83.658,83.611,9.88520366]
[1771577670022,8.64581696,83.688,83.557,35.95]
[1771577670023,10.03510845,83.668,83.621,9.88520366]
[1771577670222,3.09424736,83.67,83.621,9.88520366]
[1771577670420,13.12935581,83.68,83.63,3.09424736]
[1771577670619,13.12935581,83.68,83.631,9.88520366]
[1771577671622,23.89045581,83.68,83.633,9.88520366]
[1771577672215,23.89045581,83.68,83.635,9.88520366]
[1771577672420,13.12935581,83.68,83.635,9.88520366]
[1771577672617,3.09424736,83.68,83.635,9.88520366]
[1771577673620,3.09424736,83.66,83.619,10.7689]
[1771577673822,3.09424736,83.66,83.624,9.88520366]
[1771577674119,3.09424736,83.67,83.624,9.88520366]
[1771577674323,3.09424736,83.68,83.631,9.88520366]